Workbook

Sheet Assumptions
B1: California College Promise Project (CCPP) Cost Estimator Tool Program Assumptions
B2: Instructions: Please include information for one cohort of College Promise program participants. This data on the scope and length of your program will allow the tool to compute your program cost.
B5: How many terms are covered by your College Promise program? (Do not include coverage for summer or intersession terms -- this will be covered in the "Summer & Intersession Costs" tab.) | C5: 4
B6: Does your college use the semester or quarter system? | C6: semester
B7: Terms to be included per year | C7: =IF(C6="quarter",3,2) -> 2
B9: What is the average number of units per term that will be covered for your College Promise participants? (Consider your program's minimum enrollment requirement, if relevant, and previous trend data.) | C9: 14
B11: What are the estimated retention rates for your College Promise participants?
B12: ="Average retention rate from the first to second " & C6 -> Average retention rate from the first to second semester | C12: 0.71
B13: Average retention from first to third quarter | C13: 1
B14: Average retention rate from first to second year | C14: 0.47
B15: How many students do you anticipate will be participating in the program? (Consider previous enrollment data and the program's eligibility requirements) | C15: 2704
B17: What percent of the College Promise program participants do you estimate will be eligible for the California College Promise Grant (CCPG)? | C17: 0.74
B19: ="Status: " & IF(AND(C5<>0,C9<>0,C15<>0,C17<>0),"Complete. Proceed to the Student Costs tab","Possibly Incomplete Information. Please check before proceeding.") -> Status: Complete. Proceed to the Student Costs tab

Sheet Student Costs
B1: California College Promise Project (CCPP) Cost Estimator Tool Part I: Calculate Student Support Costs
B5: Other Student Financial Support | C5: Cost per Student / Term | D5: Percent of College Promise Students Receiving Support
B7: Student Activities | C7: 1 | D7: 1
B8: Health Fees | C8: 20 | D8: 1
B9: Transportation | C9: 0 | D9: 0
B10: Book / Course Materials | C10: 0 | D10: 0
B11: Other | C11: 5 | D11: 0.3
B13: Estimates | C13: Number of Students | D13: Cost
B14: First term | C14: =ROUND(((1-Assumptions!C17)*Assumptions!C15),0) -> 703 | D14: =IF(Assumptions!$C$9<>0,(46*C14*Assumptions!$C$9)+(C14*C7*D7)+(C14*C8*D8)+(C14*C9*D9)+(C14*C10*D10)+(C14*C11*D11),0) -> 468549.5
B15: ="2nd Term ("& (Assumptions!C12)*100 &"% Retention Rate)" -> 2nd Term (71% Retention Rate) | C15: =IF(Assumptions!C5>1,ROUND(Assumptions!C12*'Student Costs'!C14,0),"NA") -> 499 | D15: =IF(C15="NA",0,IF(Assumptions!$C$9<>0,(46*C15*Assumptions!$C$9+(C15*C7*D7)+(C15*C8*D8)+(C15*C9*D9)+(C15*C10*D10)+(C15*C11*D11)),0)) -> 332583.5
B16: ="3rd Term "&"("&(Assumptions!C13)*100&"% Retention Rate)" -> 3rd Term (100% Retention Rate) | C16: =IF(AND(Assumptions!C6="quarter",Assumptions!C5>2),ROUND('Student Costs'!C15*Assumptions!C13,0),0) -> 0 | D16: =IF(Assumptions!$C$9<>0,(46*C16*Assumptions!$C$9+(C16*C7*D7)+(C16*C8*D8)+(C16*C9*D9)+(C16*C10*D10)+(C16*C11*D11)),"NA") -> 0
B17: ="2nd Year, First Term (" & Assumptions!C14*100 & "% Retention Rate)" -> 2nd Year, First Term (47% Retention Rate) | C17: =IF(AND(Assumptions!C6="semester",Assumptions!C5>2),ROUND(C15*Assumptions!C14,0),IF(AND(Assumptions!C6="quarter",Assumptions!C5>3),ROUND(C16*Assumptions!C14,0))) -> 235 | D17: =IF(C17=0,0,(46*C17*Assumptions!$C$9+(C17*C7*D7)+(C17*C8*D8)+(C17*C9*D9)+(C17*C10*D10)+(C17*C11*D11))) -> 156627.5
B18: 2nd Year, 2nd Term (Assuming 0% attrition) | C18: =IF(AND(Assumptions!C6="semester",Assumptions!C5>3),C17,IF(AND(Assumptions!C6="quarter",Assumptions!C5>4),C17,0)) -> 235 | D18: =IF(C18=0,0,(46*C17*Assumptions!$C$9+(C17*C7*D7)+(C17*C8*D8)+(C17*C9*D9)+(C17*C10*D10)+(C17*C11*D11))) -> 156627.5
B19: 2nd Year, 3rd Term (Assuming 0% attrition) | C19: =IF(Assumptions!C6="semester",0,IF(Assumptions!C5=6,C18,0)) -> 0 | D19: =IF(C19=0,0,(46*C17*Assumptions!$C$9+(C17*C7*D7)+(C17*C8*D8)+(C17*C9*D9)+(C17*C10*D10)+(C17*C11*D11))) -> 0
B21: Part I, Running Yearly Totals
B22: Year 1 | C22: =IF(Assumptions!C7=3,SUM(D14:D16),IF(Assumptions!C7=2,SUM('Student Costs'!D14:D15),"NA")) -> 801133
B23: Year 2 | C23: =SUM(D17:D19) -> 313255
B24: Total | C24: =IF(AND(C23="NA",C22="NA"),"NA",SUM(C22:C23)) -> 1114388
B25: =IF(SUM(C7:C11)>0,"","Please verify that all student financial support information is correct before proceeding to the Institutional Costs tab.") -> 

Sheet Institutional Costs
B1: California College Promise Project (CCPP) Cost Estimator Tool Part II: Calculate Institutional-Level Program Costs
B6: Staffing | C6: Cost Per Year
B7: Position 1 | C7: 72000
B8: Position 2 | C8: 0
B9: Position 3 | C9: 0
B10: Position 4 | C10: 0
B11: Position 5 | C11: 0
B14: Events, Professional Development, and other Costs | C14: Cost Per Year
B15: Events and meetings | C15: 5000
B16: Professional development (conferences, workshops, trainings) | C16: 5000
B17: Materials and publications | C17: 20000
B18: Subcontracts | C18: 56000
B19: Other | C19: 0
B20: Other | C20: 0
B21: Other | C21: 0
B24: Part II, Running Yearly Totals
B25: Year 1 | C25: =IF('Student Costs'!C22="NA","NA",SUM(C7:C11,C15:C21)+'Student Costs'!C22) -> 959133
B26: Year 2 | C26: =IF('Student Costs'!C23=0,0,SUM(C7:C11,C15:C21)+'Student Costs'!C23) -> 471255
B27: Total | C27: =IF(C25="NA","NA",C25+C26) -> 1430388

Sheet Summer and Intersession Costs
B1: California College Promise Project (CCPP) Cost Estimator Tool Part III: Summer and Intersession Costs
B2: Instructions: Include information about summer sessions and/or intersessions that are covered in your College Promise program.
B5: How many summer sessions and/or intersessions will be covered in your College Promise program? | D5: 0
B8: What is the average number of units per summer or intersession term that will be covered for your College Promise participants? | D8: 0
B10: How many College Promise students do you anticipate participating in each summer or intersession? | D10: 0
B12: What percent of these students are eligible for CCPG? | D12: 0
B14: Other Student Financial Support | C14: Cost per Student / Term | D14: Percent of College Promise Students Who Will Receive Support
B15: Student Activities | C15: 0 | D15: 0
B16: Health | C16: 0 | D16: 0
B17: Transportation | C17: 0 | D17: 0
B18: Book/course materials | C18: 0 | D18: 0
B19: Other | C19: 0 | D19: 0
B21: Part III, Running Yearly Totals
B22: Year 1 | C22: ='Institutional Costs'!C25 -> 959133
B23: Year 2 | C23: ='Institutional Costs'!C26 -> 471255
B24: Summer and Intersession | C24: =D5*(('Summer and Intersession Costs'!D8*46*('Summer and Intersession Costs'!D10*D12))+((D12*D10*C16*D16)+(D12*D10*C15*D15)+(D12*D10*C17*D17)+(D12*D10*C18*D18)+(D12*D10*C19*D19))) -> 0
B25: Total | C25: =IF(C22="NA","NA",C22+C23+C24) -> 1430388

Sheet Cost Summary Sheet
B1: California College Promise Project (CCPP) Cost Estimator Tool Total Cost Summary Sheet
C3: Year 1 | D3: Year 2 | E3: Summer/ Intersession | F3: Totals
B4: Tuition Fees | C4: =46*Assumptions!C9*(SUM('Student Costs'!C14:C16)) -> 774088 | D4: =46*Assumptions!C9*(SUM('Student Costs'!C17:C19)) -> 302680 | E4: =46*'Summer and Intersession Costs'!D8*'Summer and Intersession Costs'!D10*'Summer and Intersession Costs'!D5*'Summer and Intersession Costs'!D12 -> 0 | F4: =SUM(C4:E4) -> 1076768
B5: Health Fees | C5: ='Student Costs'!C8*('Student Costs'!D8*(SUM('Student Costs'!C14:C16))) -> 24040 | D5: ='Student Costs'!C8*('Student Costs'!D8*(SUM('Student Costs'!C17:C19))) -> 9400 | E5: ='Summer and Intersession Costs'!C15*'Summer and Intersession Costs'!D15*'Summer and Intersession Costs'!D10*'Summer and Intersession Costs'!D5*'Summer and Intersession Costs'!D12 -> 0 | F5: 33440
B6: Student Activities | C6: ='Student Costs'!C7*('Student Costs'!D7*(SUM('Student Costs'!C14:C16))) -> 1202 | D6: ='Student Costs'!C7*('Student Costs'!D7*(SUM('Student Costs'!C17:C19))) -> 470 | E6: ='Summer and Intersession Costs'!D10*'Summer and Intersession Costs'!C16*'Summer and Intersession Costs'!D16*'Summer and Intersession Costs'!D5*'Summer and Intersession Costs'!D12 -> 0 | F6: 1672
B7: Transportation | C7: ='Student Costs'!C9*('Student Costs'!D9*(SUM('Student Costs'!C14:C16))) -> 0 | D7: ='Student Costs'!C9*('Student Costs'!D9*(SUM('Student Costs'!C17:C19))) -> 0 | E7: ='Summer and Intersession Costs'!C17*'Summer and Intersession Costs'!D17*'Summer and Intersession Costs'!D10*'Summer and Intersession Costs'!D5*'Summer and Intersession Costs'!D12 -> 0 | F7: 0
B8: Book/course Materials | C8: ='Student Costs'!C10*('Student Costs'!D10*(SUM('Student Costs'!C14:C16))) -> 0 | D8: ='Student Costs'!C10*('Student Costs'!D10*(SUM('Student Costs'!C17:C19))) -> 0 | E8: ='Summer and Intersession Costs'!C18*'Summer and Intersession Costs'!D18*'Summer and Intersession Costs'!D10*'Summer and Intersession Costs'!D5*'Summer and Intersession Costs'!D12 -> 0 | F8: 0
B9: Other | C9: ='Student Costs'!C11*('Student Costs'!D11*(SUM('Student Costs'!C14:C16))) -> 1803 | D9: ='Student Costs'!C11*('Student Costs'!D11*(SUM('Student Costs'!C17:C19))) -> 705 | E9: ='Summer and Intersession Costs'!C19*'Summer and Intersession Costs'!D19*'Summer and Intersession Costs'!D10*'Summer and Intersession Costs'!D5*'Summer and Intersession Costs'!D12 -> 0 | F9: 2508
B10: Staffing | C10: =SUM('Institutional Costs'!C7:C11) -> 72000 | D10: =IF(OR(AND(Assumptions!C6="quarter",Assumptions!C5>3),AND(Assumptions!C6="semester",Assumptions!C5>2)),SUM('Institutional Costs'!C7:C11),0) -> 72000 | E10: NA | F10: 144000
B11: Events/Professional Development | C11: =SUM('Institutional Costs'!C15:C21) -> 86000 | D11: =IF(OR(AND(Assumptions!C6="semester",Assumptions!C5>2),AND(Assumptions!C6="quarter",Assumptions!C5>3)),SUM('Institutional Costs'!C15:C21),0) -> 86000 | E11: NA | F11: 172000
B12: Totals | C12: =SUM(C4:C11) -> 959133 | D12: =SUM(D4:D11) -> 471255 | E12: =SUM(E4:E9) -> 0 | F12: =SUM(F4:F11) -> 1430388

Sheet RefHidden (hidden)
A1: semester
A2: quarter
